fUST/lending_fUST_20250812
["ID","MTS","AMOUNT","RATE_DAILY","PERIOD"]
[378748254,1755001838696,-500.0,0.00017973,2]
[378748255,1755001838705,-500.93742005,0.00017973,2]
[378748256,1755001838714,-500.0,0.00017973,2]
[378748257,1755001838724,-500.0,0.00017973,2]
[378748258,1755001838733,-500.0,0.00017973,2]
[378748259,1755001838743,-502.98473716,0.00017973,2]
[378748260,1755001838753,-576.41,0.00017998,2]
[378748261,1755001838762,-460.0,0.00017998,2]
[378748262,1755001838772,-460.0,0.00017998,2]
[378748263,1755001838781,-460.0,0.00017998,2]
[378748264,1755001838791,-492.12,0.00017998,2]
[378748265,1755001838801,-460.0,0.00017998,2]
[378748266,1755001838810,-460.0,0.00017998,2]
[378748267,1755001838822,-460.0,0.00017998,2]
[378748268,1755001838832,-460.0,0.00017998,2]
[378748269,1755001838841,-460.0,0.00017998,2]
[378748270,1755001838851,-460.0,0.00017998,2]
[378748271,1755001838861,-554.22,0.00017998,2]
[378748272,1755001838871,-277.04727961,0.00017998,2]
[378748273,1755001838881,-464.84810911,0.00017998,2]
[378748274,1755001838891,-460.0,0.00017998,2]
[378748275,1755001838900,-349.52822678,0.00017998,2]
[378748276,1755001838910,-460.0,0.00017998,2]
[378748277,1755001838920,-460.0,0.00017998,2]
[378748278,1755001838929,-460.0,0.00017998,2]
[378748279,1755001838939,-460.0,0.00017998,2]
[378748280,1755001838949,-6452.56,0.00017998,2]
[378748281,1755001838959,-1955.18,0.00017998,2]
[378748282,1755001838969,-983.58,0.00017998,2]
[378748283,1755001838979,-983.58,0.00017998,2]
[378748284,1755001838988,-983.58,0.00017998,2]
[378748285,1755001838998,-983.58,0.00017998,2]
[378748286,1755001839007,-983.58,0.00017998,2]
[378748287,1755001839017,-983.68,0.00017998,2]
[378748288,1755001839026,-461.70575592,0.00017998,2]
[378748289,1755001839036,-2570.16,0.00017998,2]
[378748290,1755001839045,-460.0,0.00017999,2]
[378748291,1755001839055,-460.0,0.00017999,2]
[378748292,1755001839064,-460.0,0.00017999,2]
[378748293,1755001839078,-460.0,0.00017999,2]
[378748294,1755001839088,-510.84802152,0.00017999,2]
[378748295,1755001839098,-214.25971025,0.00017999,2]
[378748296,1755001839108,-434.78184007,0.00017999,2]
[378748297,1755001839118,-460.0,0.00017999,2]
[378748298,1755001839128,-354.0069968,0.00017999,2]
[378748299,1755001839137,-460.0,0.00017999,2]
[378748300,1755001839147,-464.79285501,0.00017999,2]
[378748301,1755001839157,-511.43498744,0.00017999,2]
[378748302,1755001839166,-461.45396177,0.00017999,2]
[378748303,1755001839176,-460.0,0.00017999,2]
[378748304,1755001839186,-654.54,0.00017999,2]
[378748305,1755001839197,-467.99362962,0.00017999,2]
[378748306,1755001839206,-460.0,0.00017999,2]
[378748307,1755001839216,-460.0,0.00017999,2]
[378748308,1755001839225,-460.0,0.00017999,2]
[378748309,1755001839235,-460.0,0.00017999,2]
[378748310,1755001839245,-460.0,0.00017999,2]
[378748311,1755001839258,-461.48419021,0.00017999,2]
[378748312,1755001839273,-462.43010317,0.00017999,2]
[378748313,1755001839289,-460.0,0.00017999,2]
[378748314,1755001839303,-460.0,0.00017999,2]
[378748315,1755001839313,-460.0,0.00017999,2]
[378748316,1755001839327,-460.0,0.00017999,2]
[378748317,1755001839337,-461.7022495,0.00017999,2]
[378748318,1755001839347,-460.0,0.00017999,2]
[378748319,1755001839358,-460.0,0.00017999,2]
[378748320,1755001839368,-460.0,0.00017999,2]
[378748321,1755001839378,-460.0,0.00017999,2]
[378748322,1755001839389,-460.0,0.00017999,2]
[378748323,1755001839399,-460.0,0.00017999,2]
[378748324,1755001839409,-460.0,0.00017999,2]
[378748325,1755001839419,-460.0,0.00017999,2]
[378748326,1755001839428,-460.0,0.00017999,2]
[378748327,1755001839439,-460.0,0.00017999,2]
[378748328,1755001839449,-460.0,0.00017999,2]
[378748329,1755001839459,-460.0,0.00017999,2]
[378748330,1755001839470,-460.0,0.00017999,2]
[378748331,1755001839480,-460.0,0.00017999,2]
[378748332,1755001839490,-460.0,0.00017999,2]
[378748333,1755001839500,-460.0,0.00017999,2]
[378748334,1755001839510,-460.0,0.00017999,2]
[378748335,1755001839519,-460.0,0.00017999,2]
[378748336,1755001839532,-460.0,0.00017999,2]
[378748337,1755001839545,-460.0,0.00017999,2]
[378748338,1755001839559,-428.30336908,0.00017999,2]
[378748339,1755001839577,-460.0,0.00017999,2]
[378748340,1755001839592,-460.0,0.00017999,2]
[378748341,1755001839605,-460.0,0.00017999,2]
[378748342,1755001839615,-460.0,0.00017999,2]
[378748343,1755001839627,-460.0,0.00017999,2]
[378748344,1755001839641,-177.05823901,0.00017999,2]
[378748345,1755001839653,-460.59846875,0.00017999,2]
[378748346,1755001839664,-460.0,0.00017999,2]
[378748347,1755001839677,-460.0,0.00017999,2]
[378748348,1755001839689,-468.21008992,0.00017999,2]
[378748349,1755001839703,-460.0,0.00017999,2]
[378748350,1755001839715,-463.97386721,0.00017999,2]
[378748351,1755001839727,-460.0,0.00017999,2]
[378748352,1755001839741,-388.54820801,0.00017999,2]
[378748353,1755001839754,-460.0,0.00017999,2]
[378748354,1755001839766,-460.0,0.00017999,2]
[378748355,1755001839779,-460.0,0.00017999,2]
[378748356,1755001839791,-460.0,0.00017999,2]
[378748357,1755001839808,-460.0,0.00017999,2]
[378748358,1755001839822,-460.0,0.00017999,2]
[378748359,1755001839834,-461.63524623,0.00017999,2]
[378748361,1755001839846,-460.0,0.00017999,2]
[378748362,1755001839859,-460.0,0.00017999,2]
[378748363,1755001839871,-460.0,0.00017999,2]
[378748364,1755001839883,-485.15588393,0.00017999,2]
[378748366,1755001839896,-460.0,0.00017999,2]
[378748367,1755001839907,-460.0,0.00017999,2]
[378748368,1755001839917,-460.0,0.00017999,2]
[378748369,1755001839929,-466.53537807,0.00017999,2]
[378748370,1755001839940,-448.56262813,0.00017999,2]
[378748372,1755001839952,-460.0,0.00017999,2]
[378748373,1755001839964,-460.0,0.00017999,2]
[378748374,1755001839975,-460.0,0.00017999,2]
[378748375,1755001839988,-460.0,0.00017999,2]
[378748376,1755001840000,-460.0,0.00017999,2]
[378748378,1755001840012,-460.0,0.00017999,2]
[378748380,1755001840024,-460.0,0.00017999,2]
[378748382,1755001840036,-460.0,0.00017999,2]
[378748384,1755001840049,-460.0,0.00017999,2]
[378748385,1755001840061,-460.0,0.00017999,2]
[378748388,1755001840077,-460.72316613,0.00017999,2]
[378748390,1755001840089,-460.0,0.00017999,2]
[378748391,1755001840100,-586.46,0.00017999,2]
[378748392,1755001840110,-477.78904969,0.00017999,2]
[378748393,1755001840120,-464.60819006,0.00017999,2]
[378748394,1755001840131,-460.0,0.00017999,2]
[378748395,1755001840143,-798.89,0.00017999,2]
[378748396,1755001840155,-460.0,0.00017999,2]
[378748397,1755001840168,-460.0,0.00017999,2]
[378748398,1755001840180,-500.0,0.00017999,2]
[378748399,1755001840191,-500.0,0.00017999,2]
[378748400,1755001840202,-500.0,0.00017999,2]
[378748401,1755001840212,-500.0,0.00017999,2]
[378748402,1755001840223,-483.78,0.00017999,2]
[378748403,1755001840234,-460.0,0.00017999,2]
[378748404,1755001840248,-460.0,0.00017999,2]
[378748405,1755001840262,-460.0,0.00017999,2]
[378748406,1755001840274,-460.0,0.00017999,2]
[378748407,1755001840284,-460.0,0.00017999,2]
[378748408,1755001840296,-460.0,0.00017999,2]
[378748409,1755001840307,-460.0,0.00017999,2]
[378748410,1755001840318,-460.0,0.00017999,2]
[378748411,1755001840334,-460.0,0.00017999,2]
[378748412,1755001840345,-264.96501802,0.00017999,2]
[378748413,1755001840356,-460.0,0.00017999,2]
[378748414,1755001840368,-460.0,0.00017999,2]
[378748415,1755001840379,-461.20669144,0.00017999,2]
[378748416,1755001840391,-548.90583723,0.00017999,2]
[378748417,1755001840403,-460.0,0.00017999,2]
[378748418,1755001840414,-460.27925157,0.00017999,2]
[378748419,1755001840427,-463.68703073,0.00017999,2]
[378748420,1755001840438,-460.0,0.00017999,2]
[378748421,1755001840449,-460.52798192,0.00017999,2]
[378748422,1755001840460,-460.0,0.00017999,2]
[378748423,1755001840471,-460.0,0.00017999,2]
[378748424,1755001840482,-460.0,0.00017999,2]
[378748425,1755001840493,-461.10288567,0.00017999,2]
[378748426,1755001840505,-460.0,0.00017999,2]
[378748427,1755001840515,-460.0,0.00017999,2]
[378748428,1755001840526,-464.50442201,0.00017999,2]
[378748429,1755001840538,-1100.68,0.00017999,2]
[378748430,1755001840550,-460.0,0.00017999,2]
[378748431,1755001840561,-460.0,0.00017999,2]
[378748432,1755001840574,-690.52,0.00017999,2]
[378748433,1755001840586,-460.0,0.00017999,2]
[378748434,1755001840597,-1179.26,0.00017999,2]
[378748435,1755001840608,-460.50366611,0.00017999,2]
[378748436,1755001840618,-461.20105334,0.00017999,2]
[378748437,1755001840630,-463.04525175,0.00017999,2]
[378748438,1755001840641,-460.0,0.00017999,2]
[378748439,1755001840652,-351.91730086,0.00017999,2]
[378748440,1755001840663,-460.0,0.00017999,2]
[378748441,1755001840674,-468.1498531,0.00017999,2]
[378748442,1755001840685,-460.0,0.00017999,2]
[378748443,1755001840696,-460.0,0.00017999,2]
[378748444,1755001840708,-460.0,0.00017999,2]
[378748445,1755001840719,-460.0,0.00017999,2]
[378748446,1755001840732,-521.14848999,0.00017999,2]
[378748447,1755001840742,-648.46,0.00017999,2]
[378748448,1755001840754,-460.0,0.00017999,2]
[378748449,1755001840765,-460.0,0.00017999,2]
[378748450,1755001840775,-307.86371295,0.00017999,2]
[378748451,1755001840787,-460.0,0.00017999,2]
[378748452,1755001840798,-154.0923824,0.00017999,2]
[378748453,1755001840809,-460.0,0.00017999,2]
[378748454,1755001840824,-462.66047476,0.00017999,2]
[378748455,1755001840836,-460.0,0.00017999,2]
[378748456,1755001840847,-1091.78,0.00017999,2]
[378748457,1755001840858,-460.0,0.00017999,2]
[378748458,1755001840869,-460.0,0.00017999,2]
[378748459,1755001840880,-460.49739306,0.00017999,2]
[378748460,1755001840891,-460.0,0.00017999,2]
[378748461,1755001840902,-461.7654605,0.00017999,2]
[378748462,1755001840913,-460.0,0.00017999,2]
[378748463,1755001840924,-460.0,0.00017999,2]
[378748464,1755001840935,-460.68890505,0.00017999,2]
[378748465,1755001840946,-460.0,0.00017999,2]
[378748466,1755001840957,-460.0,0.00017999,2]
[378748467,1755001840969,-460.0,0.00017999,2]
[378748468,1755001840980,-460.0,0.00017999,2]
[378748469,1755001840991,-460.0,0.00017999,2]
[378748470,1755001841003,-460.0,0.00017999,2]
[378748471,1755001841014,-460.0,0.00017999,2]
[378748472,1755001841025,-462.71591904,0.00017999,2]
[378748473,1755001841037,-460.38772244,0.00017999,2]
[378748474,1755001841049,-843.83,0.00017999,2]
[378748475,1755001841060,-460.0,0.00017999,2]
[378748476,1755001841075,-460.0,0.00017999,2]
[378748477,1755001841086,-460.0,0.00017999,2]
[378748478,1755001841097,-460.0,0.00017999,2]
[378748479,1755001841109,-1540.86,0.00017999,2]
[378748480,1755001841120,-460.0,0.00017999,2]
[378748481,1755001841131,-460.0,0.00017999,2]
[378748482,1755001841143,-461.81628262,0.00017999,2]
[378748483,1755001841155,-460.0,0.00017999,2]
[378748484,1755001841165,-464.83185603,0.00017999,2]
[378748485,1755001841177,-460.0,0.00017999,2]
[378748486,1755001841188,-460.0,0.00017999,2]
[378748487,1755001841199,-461.15930319,0.00017999,2]
[378748488,1755001841210,-460.0,0.00017999,2]
[378748489,1755001841223,-460.0,0.00017999,2]
[378748490,1755001841234,-1700.15,0.00017999,2]
[378748491,1755001841245,-461.36829929,0.00017999,2]
[378748492,1755001841257,-460.0,0.00017999,2]
[378748493,1755001841268,-460.0,0.00017999,2]
[378748494,1755001841282,-460.0,0.00017999,2]
[378748495,1755001841293,-172.37806743,0.00017999,2]
[378748496,1755001841304,-460.0,0.00017999,2]
[378748497,1755001841315,-460.0,0.00017999,2]
[378748498,1755001841332,-460.0,0.00017999,2]
[378748499,1755001841343,-460.0,0.00017999,2]
[378748500,1755001841354,-460.0,0.00017999,2]
[378748501,1755001841366,-460.0,0.00017999,2]
[378748502,1755001841377,-500.0,0.00017999,2]
[378748503,1755001841388,-500.0,0.00017999,2]
[378748504,1755001841399,-500.0,0.00017999,2]
[378748505,1755001841410,-500.0,0.00017999,2]
[378748506,1755001841420,-499.38944926,0.00017999,2]
[378748507,1755001841431,-460.0,0.00017999,2]
[378748508,1755001841443,-460.51207868,0.00017999,2]
[378748509,1755001841455,-525.01640546,0.00017999,2]
[378748510,1755001841465,-460.0,0.00017999,2]
[378748511,1755001841477,-461.48483732,0.00017999,2]
[378748512,1755001841488,-460.0,0.00017999,2]
[378748513,1755001841500,-460.0,0.00017999,2]
[378748514,1755001841510,-460.0,0.00017999,2]
[378748515,1755001841522,-461.46509219,0.00017999,2]
[378748516,1755001841533,-460.0,0.00017999,2]
[378748517,1755001841545,-460.0,0.00017999,2]
[378748518,1755001841557,-460.0,0.00017999,2]
[378748519,1755001841567,-460.0,0.00017999,2]
[378748520,1755001841580,-460.0,0.00017999,2]
[378748521,1755001841590,-460.0,0.00017999,2]
[378748522,1755001841600,-460.0,0.00017999,2]
[378748523,1755001841610,-722.17,0.00017999,2]
[378748524,1755001841620,-460.0,0.00017999,2]
[378748525,1755001841858,-460.0,0.00017999,2]
[378748526,1755001841877,-464.84588878,0.00017999,2]
[378748527,1755001841887,-465.82206723,0.00017999,2]
[378748528,1755001841897,-460.0,0.00017999,2]
[378748529,1755001841907,-460.0,0.00017999,2]
[378748530,1755001841917,-460.0,0.00017999,2]
[378748531,1755001841926,-460.0,0.00017999,2]
[378748532,1755001841936,-460.0,0.00017999,2]
[378748533,1755001841946,-960.3,0.00017999,2]
[378748534,1755001841955,-460.0,0.00017999,2]
[378748535,1755001841965,-462.10320508,0.00017999,2]
[378748536,1755001841975,-460.53245959,0.00017999,2]
[378748537,1755001841986,-460.0,0.00017999,2]
[378748538,1755001841996,-460.0,0.00017999,2]
[378748539,1755001842006,-460.0,0.00017999,2]
[378748540,1755001842016,-460.0,0.00017999,2]
[378748541,1755001842025,-460.0,0.00017999,2]
[378748542,1755001842035,-460.0,0.00017999,2]
[378748543,1755001842045,-1988.25,0.00017999,2]
[378748544,1755001842054,-460.0,0.00017999,2]
[378748545,1755001842065,-460.0,0.00017999,2]
[378748546,1755001842080,-1003.66922973,0.00017999,2]
[378748547,1755001842090,-460.0,0.00017999,2]
[378748548,1755001842100,-460.0,0.00017999,2]
[378748549,1755001842111,-460.0,0.00017999,2]
[378748550,1755001842120,-537.4,0.00017999,2]
[378748551,1755001842130,-569.52717049,0.00017999,2]
[378748552,1755001842140,-538.65908821,0.00017999,2]
[378748553,1755001842149,-461.86620049,0.00017999,2]
[378748554,1755001842159,-460.0,0.00017999,2]
[378748555,1755001842168,-460.0,0.00017999,2]
[378748556,1755001842177,-460.0,0.00017999,2]
[378748557,1755001842186,-501.37747728,0.00017999,2]
[378748558,1755001842195,-460.0,0.00017999,2]
[378748559,1755001842205,-460.0,0.00017999,2]
[378748560,1755001842214,-460.0,0.00017999,2]
[378748561,1755001842223,-460.0,0.00017999,2]
[378748562,1755001842233,-460.0,0.00017999,2]
[378748563,1755001842242,-460.0,0.00017999,2]
[378748564,1755001842252,-460.0,0.00017999,2]
[378748565,1755001842261,-460.0,0.00017999,2]
[378748566,1755001842271,-460.0,0.00017999,2]
[378748567,1755001842283,-460.0,0.00017999,2]
[378748568,1755001842293,-460.0,0.00017999,2]
[378748569,1755001842303,-460.0,0.00017999,2]
[378748570,1755001842313,-460.0,0.00017999,2]
[378748571,1755001842325,-460.0,0.00017999,2]
[378748572,1755001842336,-460.0,0.00017999,2]
[378748573,1755001842346,-500.0,0.00017999,2]
[378748574,1755001842356,-460.0,0.00017999,2]
[378748575,1755001842366,-460.0,0.00017999,2]
[378748576,1755001842375,-460.0,0.00017999,2]
[378748577,1755001842385,-460.0,0.00017999,2]
[378748578,1755001842395,-460.0,0.00017999,2]
[378748579,1755001842405,-460.0,0.00017999,2]
[378748580,1755001842415,-460.0,0.00017999,2]
[378748581,1755001842425,-460.0,0.00017999,2]
[378748582,1755001842435,-460.0,0.00017999,2]
[378748583,1755001842445,-2093.8,0.00017999,2]
[378748584,1755001842454,-461.38223423,0.00017999,2]
[378748585,1755001842464,-461.97363052,0.00017999,2]
[378748586,1755001842474,-460.0,0.00017999,2]
[378748587,1755001842485,-460.0,0.00017999,2]
[378748588,1755001842495,-460.0,0.00017999,2]
[378748589,1755001842505,-460.0,0.00017999,2]
[378748590,1755001842515,-460.0,0.00017999,2]
[378748591,1755001842525,-460.0,0.00017999,2]
[378748592,1755001842536,-460.0,0.00017999,2]
[378748593,1755001842546,-460.0,0.00017999,2]
[378748594,1755001842556,-460.0,0.00017999,2]
[378748595,1755001842566,-538.50851829,0.00017999,2]
[378748596,1755001842583,-726.36,0.00017999,2]
[378748597,1755001842593,-460.0,0.00017999,2]
[378748598,1755001842604,-534.08363083,0.00017999,2]
[378748599,1755001842614,-460.83249565,0.00017999,2]
[378748600,1755001842624,-460.51896454,0.00017999,2]
[378748602,1755001842634,-460.0,0.00017999,2]
[378748604,1755001842644,-460.0,0.00017999,2]
[378748605,1755001842654,-460.0,0.00017999,2]
[378748606,1755001842664,-460.0,0.00017999,2]
[378748607,1755001842673,-472.46,0.00017999,2]
[378748608,1755001842683,-716.43,0.00017999,2]
[378748609,1755001842694,-460.0,0.00017999,2]
[378748610,1755001842703,-460.0,0.00017999,2]
[378748611,1755001842713,-660.76,0.00017999,2]
[378748612,1755001842723,-460.0,0.00017999,2]
[378748613,1755001842733,-460.0,0.00017999,2]
[378748614,1755001842742,-460.0,0.00017999,2]
[378748615,1755001842751,-460.44707013,0.00017999,2]
[378748616,1755001842760,-25109.95740561,0.00018,2]
[378748617,1755001842770,-2861.60708631,0.00018005,2]
[378748618,1755001842780,-500.0,0.0001801,2]
[378748619,1755001842790,-500.0,0.0001801,2]
[378748621,1755001842799,-471.47936885,0.00018011,2]
[378748622,1755001842809,-460.0,0.00018011,2]
[378748623,1755001842819,-460.0,0.00018011,2]
[378748624,1755001842836,-298.73074238,0.00018011,2]
[378748625,1755001842846,-460.0,0.00018011,2]
[378748626,1755001842856,-462.07358749,0.00018011,2]
[378748627,1755001842865,-460.0,0.00018011,2]
[378748628,1755001842876,-840.44,0.00018011,2]
[378748629,1755001842885,-460.0,0.00018011,2]
[378748630,1755001842895,-423.40433545,0.00018011,2]
[378748631,1755001842905,-460.0,0.00018011,2]
[378748632,1755001842914,-460.0,0.00018011,2]
[378748633,1755001842925,-460.0,0.00018011,2]
[378748634,1755001842935,-561.43,0.00018011,2]
[378748635,1755001842944,-460.0,0.00018011,2]
[378748636,1755001842953,-460.0,0.00018011,2]
[378748637,1755001842963,-460.0,0.00018011,2]
[378748638,1755001842972,-460.0,0.00018011,2]
[378748639,1755001842981,-460.0,0.00018011,2]
[378748640,1755001842991,-562.29578521,0.00018011,2]
[378748641,1755001843001,-460.0,0.00018011,2]
[378748642,1755001843010,-500.0,0.00018011,2]
[378748643,1755001843020,-519.65632826,0.00018011,2]
[378748645,1755001843029,-460.0,0.00018011,2]
[378748646,1755001843039,-460.0,0.00018011,2]
[378748648,1755001843048,-460.0,0.00018011,2]
[378748649,1755001843058,-527.65,0.00018011,2]
[378748650,1755001843067,-460.0,0.00018011,2]
[378748651,1755001843080,-460.0,0.00018011,2]
[378748653,1755001843089,-460.0,0.00018011,2]
[378748655,1755001843099,-460.0,0.00018011,2]
[378748656,1755001843108,-460.0,0.00018011,2]
[378748657,1755001843118,-460.0,0.00018011,2]
[378748658,1755001843127,-462.21769733,0.00018011,2]
[378748659,1755001843136,-460.0,0.00018011,2]
[378748661,1755001843146,-460.0,0.00018011,2]
[378748662,1755001843155,-500.0,0.00018011,2]
[378748664,1755001843164,-460.0,0.00018011,2]
[378748665,1755001843173,-460.0,0.00018011,2]
[378748666,1755001843183,-460.0,0.00018011,2]
[378748667,1755001843192,-460.0,0.00018011,2]
[378748669,1755001843201,-460.0,0.00018011,2]
[378748670,1755001843210,-873.53,0.00018011,2]
[378748671,1755001843219,-460.0,0.00018011,2]
[378748672,1755001843228,-460.0,0.00018011,2]
[378748673,1755001843237,-460.0,0.00018011,2]
[378748674,1755001843247,-460.0,0.00018011,2]
[378748675,1755001843259,-460.0,0.00018011,2]
[378748676,1755001843268,-1212.06,0.00018011,2]
[378748677,1755001843278,-460.0,0.00018011,2]
[378748678,1755001843288,-460.0,0.00018011,2]
[378748679,1755001843299,-460.0,0.00018011,2]
[378748680,1755001843309,-460.0,0.00018011,2]
[378748682,1755001843319,-460.0,0.00018011,2]
[378748683,1755001843334,-460.0,0.00018011,2]
[378748684,1755001843344,-460.0,0.00018011,2]
[378748685,1755001843355,-500.0,0.00018011,2]
[378748686,1755001843365,-460.0,0.00018011,2]
[378748687,1755001843375,-164.83051756,0.00018011,2]
[378748688,1755001843384,-460.0,0.00018011,2]
[378748689,1755001843393,-460.0,0.00018011,2]
[378748690,1755001843403,-460.0,0.00018011,2]
[378748691,1755001843412,-460.0,0.00018011,2]
[378748692,1755001843422,-460.0,0.00018011,2]
[378748693,1755001843432,-460.0,0.00018011,2]
[378748694,1755001843442,-460.0,0.00018011,2]
[378748695,1755001843451,-460.0,0.00018011,2]
[378748696,1755001843461,-460.0,0.00018011,2]
[378748697,1755001843471,-460.0,0.00018011,2]
[378748698,1755001843481,-460.0,0.00018011,2]
[378748699,1755001843491,-460.0,0.00018011,2]
[378748700,1755001843501,-460.0,0.00018011,2]
[378748701,1755001843511,-460.0,0.00018012,2]
[378748702,1755001843521,-465.45423134,0.00018012,2]
[378748703,1755001843530,-460.0,0.00018012,2]
[378748704,1755001843539,-464.48928358,0.00018012,2]
[378748705,1755001843549,-460.0,0.00018012,2]
[378748706,1755001843559,-460.0,0.00018012,2]
[378748707,1755001843569,-460.0,0.00018012,2]
[378748708,1755001843583,-460.0,0.00018012,2]
[378748709,1755001843593,-375.68693296,0.00018038,2]
[378748710,1755001843603,-324.0,0.00018066,2]
[378748711,1755001843612,-460.0,0.00018146,2]
[378748712,1755001843622,-460.0,0.00018146,2]
[378748713,1755001843631,-460.0,0.00018146,2]
[378748714,1755001843641,-1036.58,0.00018146,2]
[378748715,1755001843651,-460.0,0.00018146,2]
[378748716,1755001843661,-2283.43,0.00018146,2]
[378748717,1755001843671,-460.0,0.00018146,2]
[378748718,1755001843680,-460.0,0.00018146,2]
[378748719,1755001843690,-460.0,0.00018146,2]
[378748720,1755001843700,-460.0,0.00018146,2]
[378748721,1755001843710,-583.53,0.00018173,2]
[378748722,1755001843720,-1317.23,0.00018173,2]
[378748723,1755001843729,-470.69,0.00018173,2]
[378748724,1755001843739,-1818.54,0.00018173,2]
[378748725,1755001843748,-460.0,0.00018173,2]
[378748726,1755001843758,-460.0,0.00018173,2]
[378748727,1755001843767,-2926.68,0.00018173,2]
[378748728,1755001843776,-1009.34,0.00018173,2]
[378748729,1755001843787,-485.17,0.00018173,2]
[378748730,1755001843796,-460.0,0.00018173,2]
[378748731,1755001843806,-696.18,0.00018173,2]
[378748732,1755001843816,-460.0,0.00018173,2]
[378748733,1755001843829,-769.97,0.00018173,2]
[378748734,1755001843838,-556.78,0.00018173,2]
[378748735,1755001843848,-460.0,0.00018173,2]
[378748736,1755001843857,-634.63,0.00018173,2]
[378748737,1755001843867,-500.0,0.00018174,2]
[378748738,1755001843877,-2861.60708631,0.00018211,2]
[378748739,1755001843887,-200.0,0.00018229,2]
[378748740,1755001843897,-200.0,0.00018229,2]
[378748741,1755001843907,-200.0,0.00018229,2]
[378748742,1755001843917,-200.0,0.00018229,2]
[378748743,1755001843927,-388.0,0.00018238,2]
[378748744,1755001843937,-576.41,0.00018272,2]
[378748745,1755001843946,-460.0,0.00018272,2]
[378748746,1755001843956,-460.0,0.00018272,2]
[378748747,1755001843965,-460.0,0.00018272,2]
[378748748,1755001843975,-492.12,0.00018272,2]
[378748749,1755001843985,-460.0,0.00018272,2]
[378748750,1755001843994,-460.0,0.00018272,2]
[378748751,1755001844004,-460.0,0.00018272,2]
[378748752,1755001844013,-460.0,0.00018272,2]
[378748753,1755001844023,-460.0,0.00018272,2]
[378748754,1755001844034,-554.22,0.00018272,2]
[378748755,1755001844045,-460.0,0.00018272,2]
[378748756,1755001844055,-460.0,0.00018272,2]
[378748757,1755001844065,-460.0,0.00018272,2]
[378748758,1755001844078,-460.0,0.00018272,2]
[378748759,1755001844090,-6452.56,0.00018272,2]
[378748760,1755001844100,-1955.18,0.00018272,2]
[378748761,1755001844110,-2570.16,0.00018272,2]
[378748762,1755001844120,-460.0,0.00018273,2]
[378748763,1755001844129,-460.0,0.00018273,2]
[378748764,1755001844139,-460.0,0.00018273,2]
[378748765,1755001844149,-460.0,0.00018273,2]
[378748766,1755001844159,-460.0,0.00018273,2]
[378748767,1755001844168,-654.54,0.00018273,2]
[378748768,1755001844178,-460.0,0.00018273,2]
[378748769,1755001844188,-460.0,0.00018273,2]
[378748770,1755001844197,-460.0,0.00018273,2]
[378748771,1755001844207,-460.0,0.00018273,2]
[378748772,1755001844216,-460.0,0.00018273,2]
[378748773,1755001844226,-460.0,0.00018273,2]
[378748774,1755001844235,-460.0,0.00018273,2]